lending/lending_fUSD_20240703
["ID","MTS","AMOUNT","RATE_DAILY","PERIOD"]
[330986925,1719987061333,-500.0,0.00021917,4]
[330986926,1719987061343,-1035.46,0.00021917,4]
[330986927,1719987061355,-669.81,0.00021917,4]
[330986928,1719987061365,-500.0,0.00021917,4]
[330986929,1719987061375,-884.26,0.00021917,4]
[330986930,1719987061388,-669.81,0.00021917,4]
[330986931,1719987061398,-500.0,0.00021917,4]
[330986932,1719987061408,-1035.46,0.00021917,4]
[330986933,1719987061419,-500.0,0.00021917,4]
[330986934,1719987061430,-884.26,0.00021917,4]
[330986935,1719987061440,-669.81,0.00021917,4]
[330986936,1719987061451,-621.5,0.00021918,2]
[330986937,1719987061460,-661.71,0.00021918,2]
[330986938,1719987061474,-150.0,0.00021918,2]
[330986939,1719987061483,-500.0,0.00021918,2]
[330986940,1719987061493,-176.85,0.00021918,2]
[330986941,1719987061504,-150.0,0.00021918,2]
[330986942,1719987061513,-150.0,0.00021918,2]
[330986943,1719987061523,-188.22778166,0.00021919,2]
[330986944,1719987061533,-500.0,0.00021921,2]
[330986945,1719987061546,-2485.744847,0.00021922,2]
[330986946,1719987061556,-214.003362,0.00021922,2]
[330986947,1719987061565,-1000.0,0.00021922,2]
[330986948,1719987061579,-500.0,0.00021922,2]
[330986949,1719987061589,-500.0,0.00021922,2]
[330986950,1719987061599,-200.0,0.00021922,2]
[330986951,1719987061609,-155.0,0.00021923,2]
[330986952,1719987061619,-500.0,0.0002193,2]
[330986953,1719987061629,-500.0,0.00021938,2]
[330986954,1719987061639,-500.0,0.00021947,2]
[330986955,1719987061649,-3172.88245229,0.0002195,2]
[330986956,1719987061659,-2018.30932762,0.00021955,2]
[330986957,1719987061669,-500.0,0.00021956,2]
[330986958,1719987061678,-500.0,0.00021965,2]
[330986959,1719987061688,-800.0,0.00021973,2]
[330986960,1719987061698,-500.0,0.00021974,2]
[330986961,1719987061708,-716.63369653,0.00021981,2]
[330986962,1719987061717,-500.0,0.00021982,2]
[330986963,1719987061730,-774.73192,0.00021985,2]
[330986964,1719987061739,-500.0,0.00021989,4]
[330986965,1719987061749,-2000.0,0.0002199,2]
[330986966,1719987061758,-200.0,0.0002199,2]
[330986967,1719987061768,-153.70159585,0.0002199,2]
[330986968,1719987061779,-500.0,0.00021991,2]
[330986969,1719987061788,-1711.33,0.00021998,4]
[330986970,1719987061800,-500.0,0.00021998,4]
[330986971,1719987061809,-500.0,0.00021998,4]
[330986972,1719987061819,-500.0,0.00021999,4]
[330986973,1719987061829,-500.0,0.00021999,4]
[330986974,1719987061839,-813.98,0.00021999,4]
[330986975,1719987061849,-812.05,0.00021999,4]
[330986976,1719987061858,-1304.86,0.00021999,4]
[330986977,1719987061867,-787.21,0.00021999,4]
[330986978,1719987061877,-1070.25,0.00021999,4]
[330986979,1719987061886,-500.0,0.00021999,4]
[330986980,1719987061895,-1489.78,0.00021999,4]
[330986981,1719987061905,-500.0,0.00021999,4]
[330986982,1719987061915,-500.0,0.00021999,4]
[330986983,1719987061926,-500.0,0.00021999,4]
[330986984,1719987061936,-775.85,0.00021999,4]
[330986985,1719987061947,-1034.52,0.00021999,4]
[330986986,1719987061957,-817.76,0.00021999,4]
[330986987,1719987061968,-686.27,0.00021999,4]
[330986988,1719987061978,-1987.09,0.00021999,4]
[330986989,1719987061988,-833.47,0.00021999,4]
[330986990,1719987061997,-1507.45,0.00021999,4]
[330986991,1719987062007,-730.54,0.00021999,4]
[330986992,1719987062017,-500.0,0.00021999,4]
[330986993,1719987062027,-770.0,0.00021999,4]
[330986994,1719987062037,-500.0,0.00021999,4]
[330986995,1719987062047,-1215.33,0.00021999,4]
[330986996,1719987062057,-575.41,0.00021999,4]
[330986997,1719987062068,-500.0,0.00021999,4]
[330986998,1719987062079,-1509.91,0.00021999,4]
[330986999,1719987062089,-500.0,0.00021999,4]
[330987000,1719987062098,-650.0,0.00022,2]
[330987001,1719987062107,-383.86504927,0.00022,2]
[330987002,1719987062117,-155.0,0.00022,2]
[330987003,1719987062126,-179.55862317,0.00022,2]
[330987004,1719987062136,-162.49117933,0.00022,2]
[330987005,1719987062146,-793.07193784,0.00022,2]
[330987006,1719987062156,-500.0,0.00022,2]
[330987007,1719987062166,-159.62095419,0.00022,2]
[330987008,1719987062176,-151.0,0.00022,7]
[330987009,1719987062186,-151.0,0.00022,7]
[330987010,1719987062198,-151.0,0.00022,7]
[330987011,1719987062208,-151.0,0.00022,7]
[330987012,1719987062220,-151.0,0.00022,7]
[330987013,1719987062229,-153.70159585,0.00022005,2]
[330987014,1719987062239,-50000.0,0.00022015,2]
[330987015,1719987062249,-700.0,0.0002207,2]
[330987016,1719987062258,-400.0,0.0002207,2]
[330987017,1719987062268,-700.0,0.0002207,2]
[330987018,1719987062277,-581.79873449,0.0002207,2]
[330987019,1719987062287,-700.0,0.0002207,2]
[330987020,1719987062298,-808.51022347,0.0002207,2]
[330987021,1719987062309,-1711.33,0.00022073,4]
[330987022,1719987062320,-155.8422356,0.00022073,2]
[330987023,1719987062330,-357.07,0.00022073,4]
[330987024,1719987062341,-500.0,0.00022073,4]
[330987025,1719987062354,-152.83186823,0.00022077,2]
[330987026,1719987062365,-500.0,0.00022083,4]
[330987027,1719987062375,-500.0,0.00022083,4]
[330987028,1719987062384,-500.0,0.00022083,4]
[330987029,1719987062394,-500.0,0.00022083,4]
[330987030,1719987062405,-813.98,0.00022083,4]
[330987031,1719987062414,-813.98,0.00022083,4]
[330987032,1719987062425,-812.05,0.00022083,4]
[330987033,1719987062435,-812.05,0.00022083,4]
[330987034,1719987062444,-500.0,0.00022083,4]
[330987035,1719987062455,-500.0,0.00022083,4]
[330987036,1719987062467,-1304.86,0.00022083,4]
[330987037,1719987062477,-1304.86,0.00022083,4]
[330987038,1719987062487,-787.21,0.00022083,4]
[330987039,1719987062498,-787.21,0.00022083,4]
[330987040,1719987062508,-500.0,0.00022083,4]
[330987041,1719987062517,-500.0,0.00022083,4]
[330987042,1719987062527,-1070.25,0.00022083,4]
[330987043,1719987062538,-1070.25,0.00022083,4]
[330987044,1719987062547,-1489.78,0.00022083,4]
[330987045,1719987062557,-1489.78,0.00022083,4]
[330987046,1719987062566,-1711.33,0.00022083,4]
[330987047,1719987062576,-500.0,0.00022083,4]
[330987048,1719987062585,-500.0,0.00022083,4]
[330987049,1719987062595,-775.85,0.00022083,4]
[330987050,1719987062604,-775.85,0.00022083,4]
[330987051,1719987062613,-817.76,0.00022083,4]
[330987052,1719987062623,-817.76,0.00022083,4]
[330987053,1719987062632,-1987.09,0.00022083,4]
[330987054,1719987062642,-1987.09,0.00022083,4]
[330987055,1719987062651,-833.47,0.00022083,4]
[330987056,1719987062661,-833.47,0.00022083,4]
[330987057,1719987062671,-1507.45,0.00022083,4]
[330987058,1719987062680,-1507.45,0.00022083,4]
[330987059,1719987062691,-730.54,0.00022083,4]
[330987060,1719987062700,-730.54,0.00022083,4]
[330987061,1719987062710,-770.0,0.00022083,4]
[330987062,1719987062720,-770.0,0.00022083,4]
[330987063,1719987062731,-1215.33,0.00022083,4]
[330987064,1719987062741,-1215.33,0.00022083,4]
[330987065,1719987062751,-575.41,0.00022083,4]
[330987066,1719987062761,-575.41,0.00022083,4]
[330987067,1719987062771,-1509.91,0.00022083,4]
[330987068,1719987062781,-1509.91,0.00022083,4]
[330987069,1719987062790,-500.0,0.00022083,4]
[330987070,1719987062800,-373446.53609424,0.00022084,2]
[330987071,1719987062810,-151.0,0.00022084,7]
[330987072,1719987062821,-151.0,0.00022084,7]
[330987073,1719987062831,-164.293442,0.00022084,7]
[330987074,1719987062841,-151.0,0.00022084,7]
[330987075,1719987062851,-151.0,0.00022084,7]
[330987076,1719987062860,-151.0,0.00022084,7]
[330987077,1719987062870,-151.0,0.00022084,7]
[330987078,1719987062881,-151.0,0.00022084,7]
[330987079,1719987062891,-151.0,0.00022084,7]
[330987080,1719987062901,-151.0,0.00022084,7]
[330987081,1719987062911,-151.0,0.00022084,7]
[330987082,1719987062921,-151.0,0.00022084,7]
[330987083,1719987062930,-151.0,0.00022084,7]
[330987084,1719987062940,-280.786544,0.00022084,7]
[330987085,1719987062951,-151.0,0.00022084,7]
[330987086,1719987062962,-151.0,0.00022084,7]
[330987087,1719987062972,-280.786544,0.00022084,7]
[330987088,1719987062981,-151.0,0.00022084,7]
[330987089,1719987062991,-151.0,0.00022084,7]
[330987090,1719987063002,-639.470498,0.00022084,7]
[330987091,1719987063012,-166.635251,0.00022084,7]
[330987092,1719987063021,-639.470498,0.00022084,7]
[330987093,1719987063031,-151.0,0.00022084,7]
[330987094,1719987063041,-166.635251,0.00022084,7]
[330987095,1719987063051,-151.0,0.00022084,7]
[330987096,1719987063061,-151.0,0.00022084,7]
[330987097,1719987063071,-176.696358,0.00022084,7]
[330987098,1719987063080,-151.0,0.00022084,7]
[330987099,1719987063090,-176.696358,0.00022084,7]
[330987100,1719987063100,-151.0,0.00022084,7]
[330987101,1719987063110,-437.979222,0.00022084,7]
[330987102,1719987063120,-437.979222,0.00022084,7]
[330987103,1719987063129,-151.0,0.00022084,7]
[330987104,1719987063139,-1344.098856,0.00022084,7]
[330987105,1719987063150,-1344.098856,0.00022084,7]
[330987106,1719987063159,-151.0,0.00022084,7]
[330987107,1719987063169,-151.0,0.00022084,7]
[330987108,1719987063179,-151.0,0.00022084,3]
[330987109,1719987063190,-205.746397,0.00022084,7]
[330987110,1719987063200,-151.0,0.00022084,7]
[330987111,1719987063210,-372.969083,0.00022084,7]
[330987112,1719987063221,-205.746397,0.00022084,7]
[330987113,1719987063231,-372.969083,0.00022084,7]
[330987114,1719987063242,-156.565015,0.00022084,7]
[330987115,1719987063252,-156.565015,0.00022084,7]
[330987116,1719987063263,-151.0,0.00022084,7]
[330987117,1719987063274,-1711.33,0.00022087,4]
[330987118,1719987063289,-813.98,0.00022088,4]
[330987119,1719987063300,-1070.25,0.00022088,4]
[330987120,1719987063313,-1489.78,0.00022088,4]
[330987121,1719987063325,-817.76,0.00022088,4]
[330987122,1719987063339,-500.0,0.00022089,4]
[330987123,1719987063350,-1034.52,0.00022089,4]
[330987124,1719987063363,-686.27,0.00022089,4]
[330987125,1719987063377,-500.0,0.00022089,4]
[330987126,1719987063390,-500.0,0.00022089,4]
[330987127,1719987063402,-500.0,0.00022089,4]
[330987128,1719987063412,-500.0,0.00022089,4]
[330987129,1719987063423,-2399.87230952,0.0002209,2]
[330987130,1719987063630,-500.0,0.00022091,4]
[330987131,1719987063640,-500.0,0.00022091,4]
[330987132,1719987063649,-813.98,0.00022092,4]
[330987133,1719987063659,-1070.25,0.00022092,4]
[330987134,1719987063668,-1489.78,0.00022092,4]
[330987135,1719987063677,-817.76,0.00022092,4]
[330987136,1719987063689,-324.57225414,0.00022092,2]
[330987137,1719987063698,-500.0,0.00022093,4]
[330987138,1719987063708,-1034.52,0.00022093,4]
[330987139,1719987063717,-686.27,0.00022093,4]
[330987140,1719987063728,-328.96735332,0.00022093,4]
[330987141,1719987063737,-500.0,0.00022093,4]
[330987142,1719987063747,-500.0,0.00022093,4]
[330987143,1719987063756,-500.0,0.00022093,4]
[330987144,1719987063765,-453.0,0.00022096,2]
[330987145,1719987063775,-812.05,0.00022097,4]
[330987146,1719987063785,-787.21,0.00022097,4]
[330987147,1719987063796,-500.0,0.00022097,4]
[330987148,1719987063805,-303.96305385,0.00022098,4]
[330987149,1719987063815,-500.0,0.00022098,4]
[330987150,1719987063824,-500.0,0.00022098,4]
[330987151,1719987063834,-775.85,0.00022098,4]
[330987152,1719987063843,-1034.52,0.00022098,4]
[330987153,1719987063853,-686.27,0.00022098,4]
[330987154,1719987063862,-1987.09,0.00022098,4]
[330987155,1719987063871,-833.47,0.00022098,4]
[330987156,1719987063881,-1507.45,0.00022098,4]
[330987157,1719987063891,-730.54,0.00022098,4]
[330987158,1719987063900,-770.0,0.00022098,4]
[330987159,1719987063911,-500.0,0.00022098,4]
[330987160,1719987063921,-1215.33,0.00022098,4]
[330987161,1719987063933,-575.41,0.00022098,4]
[330987162,1719987063942,-500.0,0.00022098,4]
[330987163,1719987063951,-1509.91,0.00022098,4]
[330987164,1719987063962,-500.0,0.00022098,4]
[330987165,1719987063972,-928.92766186,0.00022099,2]
[330987166,1719987063981,-2000.0,0.00022099,2]
[330987167,1719987063991,-500.0,0.00022099,4]
[330987168,1719987064002,-500.0,0.00022099,4]
[330987169,1719987064012,-500.0,0.00022099,4]
[330987170,1719987064023,-500.0,0.00022099,4]
[330987171,1719987064035,-500.0,0.00022099,4]
[330987172,1719987064045,-500.0,0.00022099,4]
[330987173,1719987064055,-500.0,0.00022099,4]
[330987174,1719987064066,-500.0,0.00022099,4]
[330987175,1719987064078,-500.0,0.00022099,4]
[330987176,1719987064088,-500.0,0.00022099,4]
[330987177,1719987064099,-500.0,0.00022099,4]
[330987178,1719987064109,-500.0,0.00022099,4]
[330987179,1719987064118,-517.47031795,0.00022099,4]
[330987180,1719987064128,-500.0,0.00022099,4]
[330987181,1719987064137,-500.0,0.00022099,4]
[330987182,1719987064147,-500.0,0.00022099,4]
[330987183,1719987064157,-500.0,0.00022099,4]
[330987184,1719987064166,-500.0,0.00022099,4]
[330987185,1719987064176,-500.0,0.00022099,4]
[330987186,1719987064186,-500.0,0.00022099,4]
[330987187,1719987064195,-500.0,0.00022099,4]
[330987188,1719987064205,-236.32278068,0.00022099,4]
[330987189,1719987064215,-151.0,0.00022099,7]
[330987190,1719987064227,-151.0,0.00022099,7]
[330987191,1719987064239,-151.0,0.00022099,7]
[330987192,1719987064248,-151.0,0.00022099,7]
[330987193,1719987064258,-151.0,0.00022099,7]
[330987194,1719987064267,-151.0,0.00022099,7]
[330987195,1719987064276,-151.0,0.00022099,7]
[330987196,1719987064286,-151.0,0.00022099,7]
[330987197,1719987064295,-151.0,0.00022099,7]
[330987198,1719987064306,-151.0,0.00022099,7]
[330987199,1719987064316,-151.0,0.00022099,7]
[330987200,1719987064326,-155.760888,0.00022099,7]
[330987201,1719987064336,-151.0,0.00022099,7]
[330987202,1719987064349,-151.0,0.00022099,7]
[330987203,1719987064359,-151.0,0.00022099,7]
[330987204,1719987064370,-151.0,0.00022099,7]
[330987205,1719987064380,-151.0,0.00022099,7]
[330987206,1719987064391,-151.0,0.00022099,7]
[330987207,1719987064400,-813.98,0.00022099,4]
[330987208,1719987064410,-813.98,0.00022099,4]
[330987209,1719987064420,-151.0,0.00022099,7]
[330987210,1719987064430,-813.98,0.00022099,4]
[330987211,1719987064441,-813.98,0.00022099,4]
[330987212,1719987064452,-151.0,0.00022099,7]
[330987213,1719987064466,-813.98,0.00022099,4]
[330987214,1719987064476,-157.083166,0.00022099,7]
[330987215,1719987064486,-151.0,0.00022099,7]
[330987216,1719987064495,-813.98,0.00022099,4]
[330987217,1719987064507,-813.98,0.00022099,4]
[330987218,1719987064517,-813.98,0.00022099,4]
[330987219,1719987064529,-813.98,0.00022099,4]
[330987220,1719987064542,-813.98,0.00022099,4]
[330987221,1719987064552,-813.98,0.00022099,4]
[330987222,1719987064563,-151.708353,0.00022099,7]
[330987223,1719987064576,-813.98,0.00022099,4]
[330987224,1719987064587,-813.98,0.00022099,4]
[330987225,1719987064598,-813.98,0.00022099,4]
[330987226,1719987064608,-813.98,0.00022099,4]
[330987227,1719987064619,-277.675246,0.00022099,7]
[330987228,1719987064632,-812.05,0.00022099,4]
[330987229,1719987064641,-812.05,0.00022099,4]
[330987230,1719987064652,-813.98,0.00022099,4]
[330987231,1719987064661,-812.05,0.00022099,4]
[330987232,1719987064671,-812.05,0.00022099,4]
[330987233,1719987064683,-813.98,0.00022099,4]
[330987234,1719987064694,-812.05,0.00022099,4]
[330987235,1719987064704,-812.05,0.00022099,4]
[330987236,1719987064714,-812.05,0.00022099,4]
[330987237,1719987064723,-814.13858624,0.00022099,4]
[330987238,1719987064733,-812.05,0.00022099,4]
[330987239,1719987064743,-812.05,0.00022099,4]
[330987240,1719987064753,-812.05,0.00022099,4]
[330987241,1719987064767,-812.05,0.00022099,4]
[330987242,1719987064777,-812.05,0.00022099,4]
[330987243,1719987064787,-277.675246,0.00022099,7]
[330987244,1719987064797,-812.05,0.00022099,4]
[330987245,1719987064807,-812.05,0.00022099,4]
[330987246,1719987064817,-812.05,0.00022099,4]
[330987247,1719987064826,-812.25117102,0.00022099,4]
[330987248,1719987064836,-151.0,0.00022099,7]
[330987249,1719987064846,-872.717064,0.00022099,7]
[330987250,1719987064856,-151.0,0.00022099,7]
[330987251,1719987064865,-872.717064,0.00022099,7]
[330987252,1719987064875,-151.0,0.00022099,7]
[330987253,1719987064885,-1207.533351,0.00022099,7]
[330987254,1719987064895,-787.21,0.00022099,4]
[330987255,1719987064905,-151.0,0.00022099,7]
[330987256,1719987064915,-787.21,0.00022099,4]
[330987257,1719987064925,-787.21,0.00022099,4]
[330987258,1719987064935,-787.21,0.00022099,4]
[330987259,1719987064944,-787.21,0.00022099,4]
[330987260,1719987064953,-787.21,0.00022099,4]
[330987261,1719987064963,-787.21,0.00022099,4]
[330987262,1719987064973,-787.21,0.00022099,4]
[330987263,1719987064985,-787.21,0.00022099,4]
[330987264,1719987064995,-787.21,0.00022099,4]
[330987265,1719987065004,-787.21,0.00022099,4]
[330987266,1719987065013,-787.21,0.00022099,4]
[330987267,1719987065023,-787.21,0.00022099,4]
[330987268,1719987065033,-787.21,0.00022099,4]
[330987269,1719987065043,-787.21,0.00022099,4]
[330987270,1719987065053,-787.29819183,0.00022099,4]
[330987271,1719987065063,-500.0,0.00022099,4]
[330987272,1719987065073,-500.0,0.00022099,4]
[330987273,1719987065083,-500.0,0.00022099,4]
[330987274,1719987065092,-500.0,0.00022099,4]
[330987275,1719987065102,-500.0,0.00022099,4]
[330987276,1719987065111,-500.0,0.00022099,4]
[330987277,1719987065121,-500.0,0.00022099,4]
[330987278,1719987065130,-165.80763243,0.00022099,4]
[330987279,1719987065141,-1070.25,0.00022099,4]
[330987280,1719987065151,-1070.25,0.00022099,4]
[330987281,1719987065160,-1070.25,0.00022099,4]
[330987282,1719987065170,-1070.25,0.00022099,4]
[330987283,1719987065179,-1070.25,0.00022099,4]
[330987284,1719987065188,-1070.25,0.00022099,4]
[330987285,1719987065198,-1070.25,0.00022099,4]
[330987286,1719987065207,-1070.25,0.00022099,4]
[330987287,1719987065217,-1070.25,0.00022099,4]
[330987288,1719987065228,-1070.25,0.00022099,4]
[330987289,1719987065237,-1070.25,0.00022099,4]
[330987290,1719987065248,-1070.25,0.00022099,4]
[330987291,1719987065258,-1070.25,0.00022099,4]
[330987292,1719987065267,-1070.25,0.00022099,4]
[330987293,1719987065278,-1070.25,0.00022099,4]
[330987294,1719987065288,-1070.25,0.00022099,4]
[330987295,1719987065297,-1070.25,0.00022099,4]
[330987296,1719987065308,-152.312944,0.00022099,7]
[330987297,1719987065317,-1070.3622085,0.00022099,4]
[330987298,1719987065326,-152.312944,0.00022099,7]
[330987299,1719987065336,-295.90469,0.00022099,7]
[330987300,1719987065345,-151.0,0.00022099,7]
[330987301,1719987065355,-151.0,0.00022099,7]
[330987302,1719987065364,-388.737065,0.00022099,7]
[330987303,1719987065374,-617.079538,0.00022099,7]
[330987304,1719987065383,-617.079538,0.00022099,7]
[330987305,1719987065392,-388.737065,0.00022099,7]
[330987306,1719987065401,-1489.78,0.00022099,4]
[330987307,1719987065410,-151.0,0.00022099,7]
[330987308,1719987065419,-1489.78,0.00022099,4]
[330987309,1719987065428,-217.83374,0.00022099,7]
[330987310,1719987065437,-1489.78,0.00022099,4]
[330987311,1719987065446,-151.0,0.00022099,7]
[330987312,1719987065456,-1711.33,0.00022099,4]
[330987313,1719987065470,-1489.78,0.00022099,4]
[330987314,1719987065481,-1711.33,0.00022099,4]
[330987315,1719987065491,-1489.78,0.00022099,4]
[330987316,1719987065500,-1711.33,0.00022099,4]
[330987317,1719987065511,-1489.78,0.00022099,4]
[330987318,1719987065519,-1711.33,0.00022099,4]
[330987319,1719987065529,-1489.78,0.00022099,4]
[330987320,1719987065539,-217.83374,0.00022099,7]
[330987321,1719987065550,-1489.78,0.00022099,4]
[330987322,1719987065560,-1711.33,0.00022099,4]
[330987323,1719987065570,-1489.78,0.00022099,4]
[330987324,1719987065580,-1711.33,0.00022099,4]
[330987325,1719987065590,-151.0,0.00022099,7]
[330987326,1719987065600,-1489.78,0.00022099,4]
[330987327,1719987065610,-1711.33,0.00022099,4]
[330987328,1719987065620,-1489.78,0.00022099,4]
[330987329,1719987065629,-1711.33,0.00022099,4]
[330987330,1719987065638,-1489.78,0.00022099,4]
[330987331,1719987065648,-1711.33,0.00022099,4]
[330987332,1719987065657,-1489.78,0.00022099,4]
[330987333,1719987065667,-1489.78,0.00022099,4]
[330987334,1719987065676,-1711.33,0.00022099,4]
[330987335,1719987065686,-1489.78,0.00022099,4]
[330987336,1719987065696,-1711.33,0.00022099,4]
[330987337,1719987065705,-1489.78,0.00022099,4]
[330987338,1719987065715,-1711.33,0.00022099,4]
[330987339,1719987065725,-151.0,0.00022099,7]
[330987340,1719987065735,-1711.33,0.00022099,4]
[330987341,1719987065745,-1489.78,0.00022099,4]
[330987342,1719987065755,-1711.33,0.00022099,4]
[330987343,1719987065765,-1489.78241893,0.00022099,4]
[330987344,1719987065774,-1711.33,0.00022099,4]
[330987345,1719987065783,-1711.33,0.00022099,4]
[330987346,1719987065793,-1711.42077536,0.00022099,4]
[330987347,1719987065802,-151.0,0.00022099,7]
[330987348,1719987065812,-151.0,0.00022099,7]
[330987349,1719987065821,-151.0,0.00022099,7]
[330987350,1719987065830,-151.0,0.00022099,7]
[330987351,1719987065840,-151.0,0.00022099,7]
[330987352,1719987065849,-151.0,0.00022099,7]
[330987353,1719987065859,-214.802023,0.00022099,7]
[330987354,1719987065868,-500.0,0.00022099,4]
[330987355,1719987065879,-500.0,0.00022099,4]
[330987356,1719987065889,-500.0,0.00022099,4]
[330987357,1719987065899,-500.0,0.00022099,4]
[330987358,1719987065909,-500.0,0.00022099,4]
[330987359,1719987065920,-500.0,0.00022099,4]
[330987360,1719987065929,-500.0,0.00022099,4]
[330987361,1719987065939,-500.0,0.00022099,4]
[330987362,1719987065949,-500.0,0.00022099,4]
[330987363,1719987066018,-500.0,0.00022099,4]
[330987364,1719987066028,-500.0,0.00022099,4]
[330987365,1719987066037,-500.0,0.00022099,4]
[330987366,1719987066046,-525.84278515,0.00022099,4]
[330987367,1719987066056,-500.0,0.00022099,4]
[330987368,1719987066065,-500.0,0.00022099,4]
[330987369,1719987066075,-500.0,0.00022099,4]
[330987370,1719987066084,-500.0,0.00022099,4]
[330987371,1719987066093,-500.0,0.00022099,4]
[330987372,1719987066103,-500.0,0.00022099,4]
[330987373,1719987066113,-374.34414826,0.00022099,4]
[330987374,1719987066122,-775.85,0.00022099,4]
[330987375,1719987066131,-775.85,0.00022099,4]
[330987376,1719987066143,-775.85,0.00022099,4]
[330987377,1719987066152,-775.85,0.00022099,4]
[330987378,1719987066162,-775.85,0.00022099,4]
[330987379,1719987066172,-775.85,0.00022099,4]
[330987380,1719987066181,-1034.52,0.00022099,4]
[330987381,1719987066191,-775.85,0.00022099,4]
[330987382,1719987066201,-1034.52,0.00022099,4]
[330987383,1719987066210,-775.85,0.00022099,4]
[330987384,1719987066219,-1034.52,0.00022099,4]
[330987385,1719987066230,-775.85,0.00022099,4]
[330987386,1719987066240,-1034.52,0.00022099,4]
[330987387,1719987066249,-775.85,0.00022099,4]
[330987388,1719987066259,-817.76,0.00022099,4]
[330987389,1719987066270,-1034.52,0.00022099,4]
[330987390,1719987066281,-775.85,0.00022099,4]
[330987391,1719987066291,-817.76,0.00022099,4]
[330987392,1719987066301,-1034.52,0.00022099,4]
[330987393,1719987066311,-775.85,0.00022099,4]
[330987394,1719987066321,-817.76,0.00022099,4]
[330987395,1719987066330,-1034.52,0.00022099,4]
[330987396,1719987066340,-775.85,0.00022099,4]
[330987397,1719987066349,-817.76,0.00022099,4]
[330987398,1719987066359,-1034.52,0.00022099,4]
[330987399,1719987066369,-775.85,0.00022099,4]
[330987400,1719987066379,-817.76,0.00022099,4]
[330987401,1719987066391,-775.85,0.00022099,4]
[330987402,1719987066402,-1034.52,0.00022099,4]
[330987403,1719987066413,-817.76,0.00022099,4]
[330987404,1719987066423,-775.94073762,0.00022099,4]
[330987405,1719987066433,-1034.52,0.00022099,4]
[330987406,1719987066445,-817.76,0.00022099,4]
[330987407,1719987066458,-1034.52,0.00022099,4]
[330987408,1719987066468,-817.76,0.00022099,4]
[330987409,1719987066478,-1034.52,0.00022099,4]
[330987410,1719987066487,-817.76,0.00022099,4]
[330987411,1719987066496,-1034.52,0.00022099,4]
[330987412,1719987066505,-817.76,0.00022099,4]
[330987413,1719987066515,-1034.52,0.00022099,4]
[330987414,1719987066524,-817.76,0.00022099,4]
[330987415,1719987066534,-1034.52,0.00022099,4]
[330987416,1719987066546,-817.76,0.00022099,4]
[330987417,1719987066556,-1034.52,0.00022099,4]
[330987418,1719987066567,-817.76,0.00022099,4]
[330987419,1719987066579,-1034.52,0.00022099,4]
[330987420,1719987066591,-817.76,0.00022099,4]
[330987421,1719987066602,-1034.52,0.00022099,4]
[330987422,1719987066612,-817.76,0.00022099,4]
[330987423,1719987066622,-1034.52,0.00022099,4]
[330987424,1719987066632,-817.76,0.00022099,4]